bitfinex/quotes_ETHUSD_20250913
["timestamp","ask_amount","ask_price","bid_price","bid_amount"]
[1757771965822,0.09967703,4685.8,4685.7,37.37655284]
[1757771966023,0.09967703,4685.8,4685.7,11.77355284]
[1757771966429,0.09967703,4685.8,4685.7,41.77355284]
[1757771967053,0.10307703,4685.8,4685.7,9.6364]
[1757771967346,0.10307703,4685.8,4685.7,11.77055284]
[1757771967646,0.10307703,4685.8,4685.7,43.68817169]
[1757771968437,0.10307703,4685.8,4685.7,41.77055284]
[1757771970122,0.10307703,4685.8,4685.7,35.2424]
[1757771970321,1.47357703,4685.8,4685.7,39.6324]
[1757771970539,1.90887703,4685.8,4685.7,39.6324]
[1757771971039,1.47357703,4685.8,4685.7,39.1324]
[1757771971232,0.4353,4686.2,4685.8,3.0]
[1757771971434,0.3397,4686.1,4686.0,3.0]
[1757771971741,0.4387,4686.1,4686.0,37.388]
[1757771971962,0.4387,4686.1,4686.0,33.0]
[1757771972102,0.4387,4686.1,4686.0,37.388]
[1757771972505,0.4387,4686.1,4686.0,3.0]
[1757771972748,0.4387,4686.1,4686.0,4.386]
[1757771972906,1.2307,4686.1,4686.0,4.386]
[1757771973109,1.2307,4686.1,4685.5,1.636]
[1757771973307,2.4998,4686.0,4685.6,34.385]
[1757771973541,0.792,4685.6,4685.5,1.636]
[1757771973727,2.5988,4685.6,4685.5,6.021]
[1757771973961,2.5988,4685.6,4685.5,9.021]
[1757771974258,2.85868,4685.6,4685.3,0.001]
[1757771976547,0.792,4685.4,4685.3,0.001]
[1757771976758,2.92628949,4685.4,4685.3,0.001]
[1757771976967,4.73308949,4685.4,4685.3,0.001]
[1757771979469,14.70148216,4685.4,4685.3,0.001]
[1757771979674,19.86137935,4685.4,4685.3,0.001]
[1757771980434,9.89298668,4685.4,4685.3,0.001]
[1757771980635,14.26898668,4685.4,4685.3,0.001]
[1757771981481,2.13451682,4685.0,4684.3,0.001]
[1757771981695,2.92674511,4684.4,4684.3,0.001]
[1757771981984,9.55318697,4684.4,4684.3,0.001]
[1757771982185,11.25178697,4684.4,4684.3,0.001]
[1757771982703,14.25178697,4684.4,4684.3,0.001]
[1757771982890,14.24978697,4684.4,4684.3,0.001]
[1757771985647,9.87678697,4684.4,4684.3,0.001]
[1757771985853,14.24678697,4684.4,4684.3,0.001]
[1757771989318,14.24178697,4684.4,4684.3,0.001]
[1757771990385,13.91368697,4684.4,4684.3,0.001]
[1757771990580,3.04344186,4684.4,4684.3,0.001]
[1757771990796,9.54318697,4684.4,4684.3,0.001]
[1757771991119,9.54118697,4684.4,4684.3,0.001]
[1757771992382,7.40644186,4684.4,4684.3,0.001]
[1757771992611,9.54118697,4684.4,4684.3,0.001]
[1757771993494,9.53818697,4684.4,4684.3,0.001]
[1757771993697,7.40344186,4684.4,4684.3,0.001]
[1757771994040,9.53818697,4684.4,4684.3,0.001]
[1757771994180,7.40344186,4684.4,4684.3,0.001]
[1757771994383,9.53818697,4684.4,4684.3,0.001]
[1757771995317,7.40344186,4684.4,4684.3,0.001]
[1757771995817,9.53818697,4684.4,4684.3,0.001]
[1757771996025,2.93514186,4684.4,4684.3,0.001]
[1757771996178,7.29114186,4684.4,4684.3,0.2967]
[1757771996385,7.29114186,4684.4,4684.3,0.001]
[1757771997745,7.29014186,4684.4,4684.3,0.001]
[1757771997930,9.52388697,4684.4,4684.3,0.001]
[1757771998459,5.16888697,4684.4,4684.3,0.001]
[1757771998623,7.38714186,4684.4,4684.3,0.001]
[1757771999106,7.38614186,4684.4,4684.3,0.001]
[1757771999636,3.03414186,4684.4,4684.3,0.001]
[1757771999804,7.38414186,4684.4,4684.3,0.001]
[1757772000005,3.03414186,4684.4,4684.3,0.001]
[1757772000210,9.51888697,4684.4,4684.3,0.001]
[1757772000419,7.38414186,4684.4,4684.3,0.001]
[1757772000648,9.51788697,4684.4,4684.3,0.001]
[1757772000842,5.16888697,4684.4,4684.3,0.001]
[1757772001041,11.22778697,4684.4,4684.3,0.001]
[1757772001246,18.38778697,4684.4,4684.3,0.001]
[1757772001466,21.38778697,4684.4,4684.3,0.001]
[1757772001808,14.56674186,4684.4,4684.3,0.001]
[1757772002036,14.44214186,4684.4,4684.3,0.001]
[1757772002307,16.57688697,4684.4,4684.3,0.001]
[1757772002962,14.44214186,4684.4,4684.3,0.001]
[1757772003111,16.57588697,4684.4,4684.3,0.001]
[1757772003647,16.67728697,4684.4,4684.3,0.001]
[1757772004426,18.38478697,4684.4,4684.3,0.001]
[1757772004621,21.38478697,4684.4,4684.3,0.001]
[1757772006264,2.92697299,4683.9,4683.8,0.001]
[1757772006428,14.42997299,4683.9,4683.8,0.001]
[1757772006629,18.48407299,4683.9,4683.8,0.001]
[1757772006850,16.11827299,4683.9,4683.8,0.001]
[1757772007662,16.24107299,4683.9,4683.8,0.001]
[1757772007835,18.17186042,4683.9,4683.8,0.001]
[1757772008155,16.47856042,4683.9,4683.8,0.001]
[1757772008375,16.57756042,4683.9,4683.8,0.001]
[1757772009467,12.23956042,4683.9,4683.8,0.001]
[1757772009673,16.57556042,4683.9,4683.8,0.001]
[1757772009834,12.23956042,4683.9,4683.8,0.001]
[1757772010457,16.57456042,4683.9,4683.8,0.001]
[1757772010655,16.47556042,4683.9,4683.8,0.001]
[1757772010859,2.14314186,4684.4,4683.8,2.0434]
[1757772011066,2.13488654,4684.1,4683.9,0.4289]
[1757772011236,2.14314186,4684.4,4683.9,1.3178]
[1757772011237,4.334,4684.0,4683.9,1.3178]
[1757772011442,5.126,4684.0,4683.9,1.6135]
[1757772011754,2.92697299,4683.9,4683.8,0.001]
[1757772012145,3.02837299,4683.9,4683.8,0.001]
[1757772012343,3.02837299,4683.9,4683.3,0.001]
[1757772012344,0.792,4683.7,4683.3,0.001]
[1757772012557,2.92720092,4683.4,4683.3,0.001]
[1757772012781,2.92720092,4683.4,4682.3,0.001]
[1757772012782,0.792,4683.0,4682.3,0.001]
[1757772012964,10.63036479,4682.9,4682.3,0.001]
[1757772013181,10.94416479,4682.9,4682.3,0.001]
[1757772013347,3.29936479,4682.9,4682.5,0.4289]
[1757772013669,5.122,4682.9,4682.8,2.1234]
[1757772015692,7.2574289,4682.9,4682.8,0.081]
[1757772015852,4.327,4682.9,4682.8,2.2206]
[1757772016564,4.327,4682.9,4682.8,0.081]
[1757772016565,7.2544289,4682.9,4682.8,0.081]
[1757772016766,5.84444289,4682.9,4682.8,0.081]
[1757772017260,5.84444289,4682.9,4682.8,0.8431]
[1757772017436,5.119,4682.9,4682.8,2.2206]
[1757772018484,5.119,4682.9,4682.8,0.8431]
[1757772019242,5.119,4682.9,4682.8,0.081]
[1757772019743,5.218,4682.9,4682.8,0.081]
[1757772020451,5.119,4682.9,4682.8,0.081]
[1757772020655,5.6309,4682.9,4682.8,0.081]
[1757772020876,7.7663289,4682.9,4682.8,0.081]
[1757772021078,9.5769289,4682.9,4682.8,0.081]
[1757772021280,9.2420289,4682.9,4682.8,0.081]
[1757772021443,7.8677289,4682.9,4682.8,0.081]
[1757772022934,0.56541696,4684.3,4682.8,2.2206]
[1757772023080,4.317,4684.3,4682.9,1.8456]
[1757772023385,4.317,4684.3,4683.0,0.4681]
[1757772023585,0.792,4683.6,4683.0,0.4681]
[1757772023814,0.792,4683.4,4683.0,0.4681]
[1757772024012,0.792,4683.2,4683.0,0.4681]
[1757772024313,0.792,4683.0,4682.8,0.081]
[1757772024511,5.108,4682.9,4682.8,0.5491]
[1757772024713,5.108,4682.9,4682.8,0.8431]
[1757772025588,5.108,4682.9,4682.8,0.081]
[1757772026287,5.108,4682.9,4682.8,0.3892]
[1757772026483,5.108,4682.9,4682.8,0.081]
[1757772026681,7.3424289,4682.9,4682.8,0.081]
[1757772027113,7.2434289,4682.9,4682.8,0.081]
[1757772027316,5.108,4682.9,4682.8,0.081]
[1757772027881,5.108,4682.9,4682.8,0.3892]
[1757772028313,7.2434289,4682.9,4682.8,0.081]
[1757772028616,5.108,4682.9,4682.8,0.081]
[1757772028801,7.2434289,4682.9,4682.8,0.081]
[1757772028983,5.108,4682.9,4682.8,0.081]
[1757772030696,7.2434289,4682.9,4682.8,0.081]
[1757772030926,7.3424289,4682.9,4682.8,0.081]
[1757772032189,8.5999289,4682.9,4682.8,0.081]
[1757772032396,8.9372289,4682.9,4682.8,0.081]
[1757772032589,8.93552054,4682.9,4682.8,0.081]
[1757772033730,16.09552054,4682.9,4682.8,0.081]
[1757772033913,2.9274745,4682.8,4682.3,0.001]
[1757772034151,2.92765692,4682.4,4682.3,0.001]
[1757772034434,8.96565692,4682.4,4682.3,0.001]
[1757772035034,10.22315692,4682.4,4682.3,0.001]
[1757772036040,6.729,4682.4,4682.3,2.1387]
[1757772036598,1.638,4682.4,4682.3,2.1387]
[1757772037003,5.936,4682.4,4682.3,2.1387]
[1757772037202,6.728,4682.4,4682.3,2.1387]
[1757772037631,2.43,4682.4,4682.3,2.1387]
[1757772037915,5.935,4682.4,4682.3,2.1387]
[1757772038452,5.089,4682.4,4682.3,2.1387]
[1757772039256,5.089,4682.4,4682.3,0.3092]
[1757772039910,5.089,4682.4,4682.3,0.757]
[1757772040126,5.089,4682.4,4682.3,0.3092]
[1757772040618,7.22465692,4682.4,4682.3,0.001]
[1757772040823,7.52745692,4682.4,4682.3,0.001]
[1757772041430,8.92045692,4682.4,4682.3,0.001]
[1757772043148,8.78495692,4682.4,4682.3,0.001]
[1757772044314,7.52745692,4682.4,4682.3,0.001]
[1757772044713,8.92045692,4682.4,4682.3,0.001]
[1757772045148,8.78495692,4682.4,4682.3,0.001]
[1757772045353,7.52745692,4682.4,4682.3,0.001]
[1757772045948,8.83755692,4682.4,4682.3,0.001]
[1757772047366,8.83755692,4682.4,4681.8,0.001]
[1757772047566,2.927885,4681.9,4681.8,0.001]
[1757772047721,8.849885,4681.9,4681.8,0.001]
[1757772047926,8.849885,4681.9,4681.8,0.3046]
[1757772048241,8.948885,4681.9,4681.8,0.001]
[1757772048456,10.258985,4681.9,4681.8,0.001]
[1757772048615,10.596285,4681.9,4681.8,0.001]
[1757772048818,8.948885,4681.9,4681.8,0.001]
[1757772049146,10.556385,4681.9,4681.8,0.001]
[1757772049320,2.92811312,4681.4,4681.3,0.001]
[1757772049521,7.20911312,4681.4,4681.3,0.001]
[1757772049828,7.31051312,4681.4,4681.3,0.001]
[1757772050048,7.20911312,4681.4,4681.3,0.001]
[1757772050250,2.92811312,4681.4,4681.3,0.001]
[1757772050445,7.20811312,4681.4,4681.3,0.001]
[1757772050956,7.30711312,4681.4,4681.3,0.001]
[1757772051131,2.92811312,4681.4,4681.3,0.2945]
[1757772051321,7.20711312,4681.4,4681.3,0.7413]
[1757772051528,7.20711312,4681.4,4681.3,2.0401]
[1757772052748,4.279,4681.4,4681.3,2.0401]
[1757772052926,6.41511312,4681.4,4681.3,2.0401]
[1757772053659,7.20711312,4681.4,4681.3,2.0401]
[1757772053848,7.20711312,4681.4,4681.3,0.7413]
[1757772054322,7.30611312,4681.4,4681.3,0.001]
[1757772054868,7.20711312,4681.4,4681.3,0.001]
[1757772055436,7.30611312,4681.4,4681.3,0.001]
[1757772055772,8.57631312,4681.4,4681.3,0.001]
[1757772055928,7.20711312,4681.4,4681.3,0.001]
[1757772056323,7.30611312,4681.4,4681.3,0.001]
[1757772057238,5.9283413,4680.9,4680.8,1e-08]
[1757772057439,11.8383413,4680.9,4680.8,1e-08]
[1757772057742,0.792,4680.7,4679.0,1.7456]
[1757772058061,2.13638694,4680.8,4679.1,0.4468]
[1757772058062,0.792,4679.4,4679.1,0.4468]
[1757772058271,2.92902611,4679.4,4679.3,0.2935]
[1757772058456,6.701,4679.4,4679.3,2.0391]
[1757772059352,6.701,4679.4,4678.9,1.2988]
[1757772059559,2.9292088,4679.0,4678.9,1.2988]
[1757772059762,2.9292088,4679.0,4678.9,1.5923]
[1757772059763,7.1972088,4679.0,4678.9,1.5923]
[1757772060067,7.1972088,4679.0,4678.9,2.0391]
[1757772060268,7.1972088,4679.0,4678.8,0.08]
[1757772060269,2.92925448,4678.9,4678.8,0.08]
[1757772060486,15.92796675,4678.9,4678.8,0.08]
[1757772060775,17.63446675,4678.9,4678.8,0.08]
[1757772061134,17.63446675,4678.9,4678.8,1e-08]
[1757772061566,17.63446675,4678.9,4677.5,0.001]
[1757772061567,2.92984846,4677.6,4677.5,0.001]
[1757772061776,8.83384846,4677.6,4677.5,0.001]
[1757772061955,9.14524846,4677.6,4677.5,0.001]
[1757772062160,13.41544846,4677.6,4677.5,0.001]
[1757772062461,7.88024846,4677.6,4677.5,0.001]
[1757772062637,12.14524846,4677.6,4677.5,0.001]
[1757772062842,13.41544846,4677.6,4677.5,0.001]
[1757772063081,2.92993988,4677.4,4677.3,0.001]
[1757772063278,20.19265215,4677.4,4677.3,0.001]
[1757772063464,21.90115215,4677.4,4677.3,0.001]
[1757772064045,10.50243988,4677.4,4677.3,0.001]
[1757772064297,11.90143988,4677.4,4677.3,0.001]
[1757772064899,2.93016844,4676.9,4676.8,0.081]
[1757772065100,10.19316844,4676.9,4676.8,0.081]
[1757772065301,3.792,4676.9,4676.8,0.081]
[1757772065612,8.83116844,4676.9,4676.8,0.081]
[1757772066341,6.693,4676.9,4676.8,2.1201]
[1757772066618,4.57016844,4676.9,4676.8,2.1201]
[1757772066829,4.57016844,4676.9,4676.8,0.3745]
[1757772066830,6.692,4676.9,4676.8,0.3745]
[1757772066979,1.64,4676.9,4676.8,2.1201]
[1757772067175,5.9,4676.9,4676.8,2.1201]
[1757772067381,5.899,4676.9,4676.8,1.3798]
[1757772067580,5.899,4676.9,4676.8,2.1201]
[1757772067581,6.691,4676.9,4676.8,2.1201]
[1757772067797,0.792,4676.9,4676.8,2.1201]
[1757772068314,2.93016844,4676.9,4676.8,2.1201]
[1757772068476,0.792,4676.9,4676.8,2.1201]
[1757772068674,6.69,4676.9,4676.8,2.1201]
[1757772069137,1.64,4676.9,4676.8,2.1201]
[1757772069275,4.257,4676.9,4676.8,2.1201]
[1757772069476,5.049,4676.9,4676.8,2.1201]
[1757772070286,5.049,4676.9,4676.8,0.3745]
[1757772070512,5.049,4676.9,4676.8,0.8213]
[1757772070812,7.18716844,4676.9,4676.8,0.3745]
[1757772071025,7.18716844,4676.9,4676.8,0.081]
[1757772071388,7.28616844,4676.9,4676.8,0.081]
[1757772071588,8.55636844,4676.9,4676.8,0.081]
[1757772071801,11.55636844,4676.9,4676.8,0.081]
[1757772072001,2.93016844,4676.9,4676.8,0.081]
[1757772072204,7.18416844,4676.9,4676.8,0.081]
[1757772072611,3.03156844,4676.9,4676.8,0.081]
[1757772072925,7.28456844,4676.9,4676.8,0.081]
[1757772073240,8.55476844,4676.9,4676.8,0.081]
[1757772073422,2.9303056,4676.6,4676.4,0.001]
[1757772073623,7.1823056,4676.6,4676.4,0.001]
[1757772073944,7.4937056,4676.6,4676.4,0.001]
[1757772074220,19.13646701,4676.6,4676.4,0.001]
[1757772074425,7.72446701,4676.6,4676.4,0.001]
[1757772074591,6.32726701,4676.6,4676.4,0.001]
[1757772074787,2.93062571,4675.9,4675.8,0.001]
[1757772074989,8.82162571,4675.9,4675.8,0.001]
[1757772075323,9.13112571,4675.9,4675.8,0.001]
[1757772075540,12.13112571,4675.9,4675.8,0.001]
[1757772076133,13.53772571,4675.9,4675.8,0.001]
[1757772076336,13.73160056,4675.9,4675.8,0.001]
[1757772076540,2.93108318,4674.9,4674.1,1.286]
[1757772076704,8.81908318,4674.9,4674.1,1.286]
[1757772076906,4.57108318,4674.9,4674.1,1.286]
[1757772077107,8.81908318,4674.9,4674.8,0.8558]
[1757772077295,2.432,4674.9,4674.8,0.8558]
[1757772077496,8.81908318,4674.9,4674.8,2.1418]
[1757772078229,2.432,4674.9,4674.8,2.1418]
[1757772078728,6.678,4674.9,4674.8,0.8558]
[1757772078893,6.678,4674.9,4674.8,2.1418]
[1757772079097,8.81708318,4674.9,4674.8,1.8359]
[1757772079364,4.57108318,4674.9,4674.8,0.3859]
[1757772079524,8.81608318,4674.9,4674.8,0.08]
[1757772080358,8.91508318,4674.9,4674.8,0.08]
[1757772080776,8.91508318,4674.9,4674.8,1e-08]
[1757772080777,14.17212167,4674.9,4674.8,1e-08]
[1757772080959,14.36595536,4674.9,4674.8,1e-08]
[1757772081418,14.36395536,4674.9,4674.8,1e-08]
[1757772081875,14.36395536,4674.9,4672.8,0.08]
[1757772081876,2.93199871,4672.9,4672.8,0.08]
[1757772082024,8.81499871,4672.9,4672.8,0.08]
[1757772082871,6.675,4672.9,4672.8,2.1418]
[1757772083035,8.81499871,4672.9,4672.8,0.8558]
[1757772083236,8.81499871,4672.9,4672.8,0.08]
[1757772083420,6.675,4672.9,4672.8,0.08]
[1757772083628,6.675,4672.9,4671.2,1.286]
[1757772083629,2.14020941,4672.5,4671.2,1.286]
[1757772083929,0.792,4672.7,4672.4,0.3059]
[1757772084143,2.93218191,4672.5,4672.4,0.3059]
[1757772084350,0.792,4672.8,4672.4,2.0618]
[1757772084559,0.792,4672.6,4672.5,1.7559]
[1757772084759,0.792,4672.6,4672.5,2.0618]
[1757772085148,2.93213611,4672.6,4672.5,2.0618]
[1757772085467,2.93213611,4672.6,4671.9,1.286]
[1757772085468,2.93241095,4672.0,4671.9,1.286]
[1757772085763,2.433,4672.0,4671.9,2.0618]
[1757772085960,6.671,4672.0,4671.9,2.0618]
[1757772086970,6.671,4672.0,4670.8,0.08]
[1757772086971,5.879,4672.0,4671.3,1.7559]
[1757772087193,5.879,4672.0,4670.8,0.08]
[1757772087194,0.792,4671.9,4670.9,1.286]
[1757772087413,2.93286919,4671.0,4670.9,1.286]
[1757772087562,6.669,4671.0,4670.9,2.0618]
[1757772088101,2.93291502,4670.9,4670.8,0.08]
[1757772088499,2.93332762,4670.0,4669.9,0.4699]
[1757772088663,6.668,4670.0,4669.9,0.7758]
[1757772088862,2.433,4670.0,4669.9,2.0618]
[1757772089064,6.668,4670.0,4669.9,2.0618]
[1757772089365,2.433,4670.0,4669.9,2.0618]
[1757772089565,6.667,4670.0,4669.9,2.0618]
[1757772089800,1.641,4670.0,4669.9,2.0618]
[1757772090319,0.792,4670.6,4669.9,2.0618]
[1757772090499,0.792,4670.4,4670.0,1.7559]
[1757772090706,4.234,4670.5,4670.3,0.3059]
[1757772090902,1.642,4670.7,4670.3,0.3059]
[1757772090903,4.233,4670.6,4670.4,1.7559]
[1757772091211,4.233,4670.6,4670.5,2.0618]
[1757772091909,5.132,4672.8,4670.5,2.0618]
[1757772092200,5.874,4672.7,4671.8,0.001]
[1757772092411,5.874,4672.7,4671.9,0.4699]
[1757772092563,5.874,4672.7,4672.0,1.286]
[1757772093024,5.874,4672.7,4672.6,0.3059]
[1757772093231,2.14022259,4672.5,4671.8,0.001]
[1757772093425,0.792,4672.3,4671.8,0.001]
[1757772093731,0.792,4672.1,4671.8,0.001]
[1757772093880,0.792,4672.1,4671.9,1.7559]
[1757772094069,0.792,4672.1,4671.8,0.001]
[1757772094716,2.93236839,4672.1,4671.8,0.001]
[1757772094918,0.792,4672.1,4672.0,0.3059]
[1757772095117,0.792,4672.1,4672.0,0.7758]
[1757772095420,0.792,4672.1,4672.0,2.0618]
[1757772095720,5.021,4672.1,4672.0,2.0618]
[1757772095902,7.16136514,4672.1,4672.0,0.7758]
[1757772096424,7.16136514,4672.1,4671.8,0.001]
[1757772096425,2.93245677,4671.9,4671.8,0.001]
[1757772097022,3.2279627,4671.9,4671.8,0.001]
[1757772097225,7.3525627,4671.9,4671.8,0.001]
[1757772098141,5.21110593,4671.9,4671.8,0.001]
[1757772098419,7.3515627,4671.9,4671.8,0.001]
[1757772098718,5.017,4671.9,4671.8,2.0628]
[1757772099108,4.225,4671.9,4671.8,2.0628]
[1757772099495,5.017,4671.9,4671.8,2.0628]
[1757772099700,5.017,4671.9,4671.8,0.7768]
[1757772100096,7.15745677,4671.9,4671.8,0.001]
[1757772100433,8.72882004,4671.9,4671.8,0.001]
[1757772100612,8.91942004,4671.9,4671.8,0.001]
[1757772100813,3.41962004,4671.9,4671.8,0.001]
[1757772101127,9.06512004,4671.9,4671.8,0.001]
[1757772101313,4.69742004,4671.9,4671.8,0.001]
[1757772101635,9.06412004,4671.9,4671.8,0.001]
[1757772101842,9.51232003,4671.9,4671.8,0.001]
[1757772103318,2.14064005,4671.5,4669.4,0.4699]
[1757772103514,2.14082336,4671.1,4669.4,0.4699]
[1757772103720,0.792,4669.7,4669.4,0.4699]
[1757772104021,0.792,4669.5,4669.4,0.4699]
[1757772104248,0.792,4669.5,4669.2,1.286]
[1757772104249,6.84680619,4669.5,4669.2,1.286]
[1757772104445,2.14164278,4669.4,4669.2,1.7559]
[1757772104755,4.218,4669.3,4669.2,1.7559]
[1757772104942,0.792,4669.2,4668.8,0.5499]
[1757772105149,0.792,4669.0,4668.9,1.7559]
[1757772105440,0.792,4669.0,4668.9,0.7758]
[1757772105675,2.93378624,4669.0,4668.9,0.7758]
[1757772105843,2.93378624,4669.0,4668.9,0.3059]
[1757772106024,0.98680353,4669.0,4668.9,0.3059]
[1757772106356,0.98680353,4669.0,4668.9,0.7566]
[1757772106558,5.20280353,4669.0,4668.9,2.0231]
[1757772106733,4.216,4669.0,4668.9,2.0231]
[1757772107654,4.215,4669.0,4668.9,2.0231]
[1757772108624,1.642,4669.5,4668.9,2.0231]
[1757772108852,4.214,4669.6,4669.0,1.7172]
[1757772109036,1.643,4670.3,4669.1,1.7172]
[1757772109037,4.214,4669.5,4669.1,1.7172]
[1757772109239,4.213,4669.4,4668.8,0.08]
[1757772109483,0.792,4670.1,4669.3,0.3162]
[1757772109686,0.792,4669.9,4669.4,0.4569]
[1757772109978,0.792,4669.7,4669.4,0.4569]
[1757772110180,0.792,4669.5,4669.4,0.4569]
[1757772110479,0.98715218,4669.5,4669.4,2.0634]
[1757772110684,7.34070909,4669.5,4669.4,0.3042]
[1757772110857,7.34070909,4669.5,4668.9,0.4569]
[1757772110858,5.19915218,4669.5,4668.9,0.4569]
[1757772111057,2.63015218,4669.4,4668.9,0.4569]
[1757772111259,0.19515218,4669.3,4668.9,0.4569]
[1757772111465,0.792,4669.1,4669.0,0.4569]
[1757772111665,0.98715218,4669.1,4669.0,0.4569]
[1757772111865,0.98715218,4669.1,4669.0,2.0634]
[1757772112271,0.792,4669.1,4669.0,2.0634]
[1757772113489,0.792,4669.1,4668.8,0.081]
[1757772113691,0.099,4668.9,4668.8,0.081]
[1757772113898,7.43598903,4668.9,4668.8,0.081]
[1757772114077,2.93401563,4668.5,4668.4,0.001]
[1757772114392,8.98017254,4668.5,4668.4,0.001]
[1757772114575,10.65147254,4668.5,4668.4,0.001]
[1757772114764,0.98715691,4668.5,4668.4,0.001]
[1757772114962,6.93615691,4668.5,4668.4,0.001]
[1757772115163,6.83715691,4668.5,4668.4,0.001]
[1757772115366,6.642,4668.5,4668.4,0.001]
[1757772115567,8.78401563,4668.5,4668.4,0.001]
[1757772115781,6.83697493,4668.5,4668.4,0.001]
[1757772116085,2.435,4668.5,4668.4,0.4579]
[1757772116297,2.435,4668.5,4668.4,2.0644]
[1757772116298,1.643,4668.5,4668.4,2.0644]
[1757772116606,1.643,4669.2,4668.4,2.0644]
[1757772116895,4.205,4669.1,4668.5,1.7592]
[1757772117111,4.205,4669.0,4668.5,1.7592]
[1757772117300,1.643,4669.6,4668.4,0.001]
[1757772117301,6.34684157,4668.9,4668.4,0.001]
[1757772117506,1.643,4669.6,4668.4,0.001]
[1757772117507,0.792,4668.7,4668.4,0.001]
[1757772117689,2.435,4668.7,4668.5,0.4569]
[1757772117876,2.435,4668.7,4668.4,0.001]
[1757772117877,4.204,4668.9,4668.6,2.0634]
[1757772118078,4.204,4668.9,4668.7,1.7592]
[1757772118273,1.643,4669.5,4668.8,2.0634]
[1757772118479,4.203,4669.4,4668.9,1.7592]
[1757772118699,1.643,4669.5,4669.3,0.3042]
[1757772118915,1.643,4669.5,4669.4,1.7592]
[1757772119212,5.846,4669.5,4669.4,2.0634]
[1757772119797,5.845,4669.5,4669.4,2.0634]
[1757772120311,1.643,4669.5,4669.4,2.0634]
[1757772120616,0.08,4670.8,4669.4,2.0634]
[1757772120617,4.201,4670.1,4669.4,2.0634]
[1757772120814,0.08,4670.8,4669.5,1.78061556]
[1757772121128,0.08,4670.8,4669.6,5.14150195]
[1757772121422,2.803,4671.4,4670.7,0.3042]
[1757772121631,0.002,4671.4,4670.9,3.0]
[1757772121780,0.002,4671.4,4671.3,0.3042]
[1757772122417,0.002,4671.4,4671.3,2.0634]
[1757772122778,0.002,4671.4,4671.3,5.0634]
[1757772123601,0.002,4671.4,4671.3,5.1698]
[1757772123801,0.002,4671.4,4671.3,5.0634]
[1757772125443,0.002,4671.4,4671.3,0.3042]
[1757772126040,0.002,4671.4,4670.8,0.4569]
[1757772126557,0.002,4671.4,4671.3,0.3042]
[1757772127152,0.002,4671.4,4671.3,2.0634]
[1757772127633,0.002,4671.4,4671.3,2.08480731]
[1757772127947,0.002,4671.4,4671.3,5.0634]
[1757772128634,0.002,4671.4,4671.3,7.2041317]
[1757772128944,0.002,4671.4,4671.3,5.0634]
[1757772129948,0.002,4671.4,4671.3,7.2041317]
[1757772130163,0.002,4671.9,4671.8,2.14050259]
[1757772130442,0.002,4671.9,4671.8,35.16190761]
[1757772130649,0.002,4671.9,4671.8,37.20390259]
[1757772131013,0.002,4671.9,4671.8,7.20390259]
[1757772131412,0.002,4671.9,4671.8,37.20390259]
[1757772131854,0.002,4671.9,4671.8,41.38990259]
[1757772133138,0.002,4671.9,4671.8,37.20390259]
[1757772133382,0.002,4671.9,4671.8,39.2474]
[1757772133542,0.002,4671.9,4671.8,35.0634]
[1757772133742,0.002,4671.9,4671.8,41.49430259]
[1757772133971,0.002,4671.9,4671.8,39.3538]
[1757772134638,0.002,4671.9,4671.8,41.49430259]
[1757772135251,0.002,4671.9,4671.8,41.38590259]
[1757772135572,0.002,4671.9,4671.8,35.0634]
[1757772135789,0.002,4671.9,4671.8,41.38590259]
[1757772136182,0.002,4671.9,4671.8,39.2444]
[1757772136352,0.002,4671.9,4671.8,36.2434]
[1757772136554,0.002,4671.9,4670.8,2.1409438]
[1757772136555,0.002,4671.9,4670.8,1.3278]
[1757772136744,0.002,4671.9,4670.8,5.5078]
[1757772136945,0.002,4671.9,4670.9,0.02140915]
[1757772137266,0.002,4671.9,4670.9,3.0]
[1757772137666,0.002,4671.9,4670.9,0.02140915]
[1757772137847,0.002,4671.9,4670.9,4.178]
[1757772138040,0.002,4671.9,4670.8,0.4716]
[1757772138246,0.002,4671.9,4670.8,4.178]
[1757772139095,0.002,4671.9,4670.6,0.4716]
[1757772139250,0.792,4671.8,4670.3,1.642]
[1757772139445,0.099,4670.4,4669.3,1.642]
[1757772139674,0.792,4670.3,4669.4,30.0]
[1757772139874,7.27173782,4673.5,4669.4,30.0]
[1757772139875,0.792,4670.9,4669.5,0.4716]
[1757772140101,0.792,4670.9,4669.6,31.34921511]
[1757772140311,0.792,4671.5,4669.6,1.3278]
[1757772140518,0.792,4671.5,4669.7,0.49301465]
[1757772140887,0.792,4671.5,4669.7,0.4716]
[1757772141086,0.792,4671.3,4669.4,4.175]
[1757772141304,0.792,4671.3,4669.5,1.82081556]
[1757772141510,0.792,4671.3,4669.5,34.7994]
[1757772141828,0.792,4671.1,4669.5,7.175]
[1757772143220,0.002,4672.4,4669.5,7.175]
[1757772143221,0.792,4671.4,4669.6,0.49301511]
[1757772143433,0.792,4671.4,4669.7,3.0]